Workbook

Sheet Hoja de vida poliza RCCH
B4: HOJA DE VIDA POLIZA CASUALTY & LF | I4: SI
B5: =+IF(C23>0,"CUENTA FACULTATIVA ","CUENTA EN CONTRATOS") -> CUENTA EN CONTRATOS | I5: NO
B6: FECHA: | C6: 2017-12-06 | E6: SUSCRIPTOR | F6: LILIANA PEREA
B7: RAMO / PRODUCTO | C7: RCCH | E7: NO. DE POLIZA | F7: 22027503
B8: TOMADOR | C8: MEDILASER | I8: NO
B9: ASEGURADO | C9: MEDILASER | I9: Industria Química
B10: ACTIVIDAD | C10: PRESTACIÓN DE SERVICIOS MÉDICOS | I10: Industria Farmacéutica
B11: VIGENCIA | C11: 2017-2018 | F11: COASEGURADORES | I11: Proveedores de Partes para Automóviles
B12: MQES ? | C12: NO | I12: Cobertura Anual para Construcción
B13: PRIMA ANTES DE IVA (Opcional) | I13: Telecomunicacion
B14: COMISION BROKER (Opcional) | C14: 0.15
B16: DATOS DEL SEGURO
B17: Participación AZ Colombia | C17: 1
B18: Limite Asegurado Dólares | E18: =+IF(AND(ISBLANK(C18)=FALSE,ISBLANK(C19)=FALSE),"UNA DE LAS 2 CELDAS DEBE ESTAR VACIA","") -> 
B19: Limite Asegurado Pesos | C19: 6000000000
B20: DATOS DEL REASEGURO | E20: REASEGURADORES
B21: TRM USD | C21: 2996.53
B22: TRM EU | C22: 3565.45
B23: Limite reasegurado
B24: % Retención AZ Colombia
B25: % Reaseguro FAC con cias no AZ: | E25: CIFRAS EN EUROS | F25: RESULTADO VALIDACION
B26: Limite Asegurado en pesos | D26: =+C18*C21 -> 0 | E26: =+D26/$C$22 -> 0 | I26: Servicios Públicos (agua, gas, etc)
B27: Limite Asegurado a comparar convertido a pesos | D27: =+IF(ISBLANK(C19)=TRUE,D26,C19) -> 6000000000 | E27: =+D27/$C$22 -> 1682817.036
B28: Limite Total de Participación AZ Colombia | C28: =+D27*C17 -> 6000000000 | E28: =+C28/$C$22 -> 1682817.036 | F28: =+IF(C28>10000000000,"LIMITE FUERA DE CONTRATOS","") -> 
B29: VALIDACION
B30: Exposición Bruta? GUE > EU 250M ? | C30: =+IF(D27*C17>C22*250000000,"SI","NO") -> NO | D30: =+C28*C17 -> 6000000000 | E30: =+D30/$C$22 -> 1682817.036 | F30: =+IF(C30="SI","REPORTAR A LA BD DE ALLIANZ ANTES DE COTIZAR","") -> 
B31: Exposición Bruta? GUL (Local) > $36,000,000,000 ? | C31: =+IF(C28>36000000000,"SI","NO") -> NO | D31: =+C28 -> 6000000000 | E31: =+D31/$C$22 -> 1682817.036 | F31: =+IF(C31="SI","REPORTAR A CUO Y COMITE LOCAL ANTES DE COTIZAR ","") -> 
B32: Reaseguro Facultativo a Cias no AZ > EU 50M? | C32: =+IF(C23*C25>C22*50000000,"SI","NO") -> NO | D32: =+C23*C25*C21 -> 0 | E32: =+D32/$C$22 -> 0 | F32: =+IF(C32="SI","REPORTAR A LA BD DE ALLIANZ ANTES DE COTIZAR","") -> 
B33: Reaseguro Facultativo a Cias no AZ > 90%? | C33: =+IF(C25>90%,"SI","NO") -> NO | D33: =+C23*C25*C21 -> 0 | E33: =+D33/$C$22 -> 0 | F33: =+IF(C33="SI","REPORTAR A LA BD DE ALLIANZ ANTES DE COTIZAR","") -> 
B34: Reaseguro Facultativo dentro de security list? | F34: =+IF(C34="NO","REPORTAR A CUO Y COMITE LOCAL ANTES DE COTIZAR ","") -> 
B36: * Diligencie los campos en este color
B38: NOTAS DEL SUSCRIPTOR

Sheet RATING TOOL RCCH
B4: RATING TOOL RCCH V1/2013 RCCH (MEDMAL)
F5: PROCESO DE TARIFACIÓN. | G5: CALCULO
B6: NOMBRE RIESGO: | C6: MEDILASER
B7: VIGENCIA | C7: 2017-2018
B8: LIMITE (millones $) | C8: 1500 | F8: Se carga el límite de cotización requerido en millones
B9: CAMAS | C9: =10+142+133 -> 285 | F9: Se carga el numero de camas
B10: PRIMA PLO | D10: =IF(C9<=60,60*C68,C9*C68) -> 12682500 | F10: Se calcula la prima PLO usando el valor registrado en la celda PLO Básica de la tabla PLO | G10: SI(C6<=60;60*C37;C6*C37)
B11: GRUPO A (MEDICOS VINCULADOS LABORALMENTE)
B12: CATEGORIA I: ANESTESIOLOGOS, GINECOLOGOS, GINECOBSTETRAS | C12: =0+0+0 -> 0 | D12: =F68*C12 -> 0 | F12: Se carga la cantidad de medicos del grupo A de la categoria I y se usa esta cifra para calcular la prima usando el valor registrado en la celda PLO Básica de la tabla medicos cat 1 | G12: F37*C9
B13: CATEGORIA II: ESPECIALISTAS EN CIRUGIA, UROLOGIA, OFTALMOLOGIA, RADIOLOGIA | C13: =18+0+0 -> 18 | D13: =I68*C13 -> 15130800 | F13: Se carga la cantidad de medicos del grupo A de la categoria II y se usa esta cifra para calcular la prima usando el valor registrado en la celda PLO Básica de la tabla medicos cat 2 | G13: L37*C10
B14: CATEGORIA III: DEMAS MEDICOS | C14: =67+0+0 -> 67 | D14: =L68*C14 -> 35664100 | F14: Se carga la cantidad de medicos del grupo A de la categoria III y se usa esta cifra para calcular la prima usando el valor registrado en la celda PLO Básica de la tabla medicos cat 3 | G14: L38*C11
B15: CATEGORIA IV:ODONTOLOGOS, ORTODONCISTAS | C15: =0+0+0 -> 0 | D15: =O68*C15 -> 0 | F15: Se carga la cantidad de medicos del grupo A de la categoria IV y se usa esta cifra para calcular la prima usando el valor registrado en la celda PLO Básica de la tabla medicos cat 4 | G15: L39*C12
B16: GRUPO B (MEDICOS VINCULADOS MEDIANTE CONTRATO DE PRESTACION DE SERVICIOS O AUTORIZADO PARA TRABAJAR EN INSTALACIONES)
B17: CATEGORIA I: ANESTESIOLOGOS, GINECOLOGOS, GINECOBSTETRAS | C17: =0+43+1 -> 44 | D17: =0.6*F68*C17 -> 29066400 | F17: Se carga la cantidad de medicos del grupo A de la categoria I y se usa esta cifra para calcular la prima usando el 60% del valor registrado en la celda PLO Básica de la tabla medicos cat 1 | G17: 0,6*F37*C14
B18: CATEGORIA II: ESPECIALISTAS EN CIRUGIA, UROLOGIA, OFTALMOLOGIA, RADIOLOGIA | C18: =0+52+1 -> 53 | D18: =0.6*I68*C18 -> 26731080 | F18: Se carga la cantidad de medicos del grupo A de la categoria II y se usa esta cifra para calcular la prima usando el 60% del valor registrado en la celda PLO Básica de la tabla medicos cat 2 | G18: 0,6*L37*C15
B19: CATEGORIA III: DEMAS MEDICOS | C19: =0+184+3 -> 187 | D19: =0.6*L68*C19 -> 59724060 | F19: Se carga la cantidad de medicos del grupo A de la categoria III y se usa esta cifra para calcular la prima usando el 60% del valor registrado en la celda PLO Básica de la tabla medicos cat 3 | G19: 0,6*O37*C16
B20: CATEGORIA IV:ODONTOLOGOS, ORTODONCISTAS | C20: =0+0+0 -> 0 | D20: =0.6*O68*C20 -> 0 | F20: Se carga la cantidad de medicos del grupo A de la categoria IV y se usa esta cifra para calcular la prima usando el 60% del valor registrado en la celda PLO Básica de la tabla medicos cat 4 | G20: 0,6*R37*C17
B21: PRIMA MEDICOS | D21: =SUM(D12:D20) -> 166316440 | F21: Se suma la prima de medicos GRUPO A + GRUPO B | G21: D9+D10+D11+D12+D14+D15+D16+D17
B22: PRIMA BASE (PLO) | D22: =D21+D10 -> 178998940 | F22: se suma la prima de medicos + la prima PLO | G22: D18+D7
B23: PRIMA TOTAL | C23: ColP$: | D23: =IF(C8<=100,IF(SUM(D10:D20)>250000*C8,250000*C8,SUM(D10:D20)),IF(C8<=200,IF(SUM(D10:D20)>175000*C8,175000*C8,SUM(D10:D20)),IF(SUM(D10:D20)>150000*C8,150000*C8,SUM(D10:D20)))) -> 178998940
B25: Siniestralidad: | D25: 1.2 | F25: =+E25 -> 0
B26: Opinión del Suscriptor: | D26: 1.5 | F26: =+E26 -> 0
B28: Prima Ajustada RCCH (Ocurrencia 2 años Sunset): | D28: =+(D23*D26)*(D25) -> 322198092
B29: Payback PLO en años: | D29: =+(C8*1000000)/D28 -> 4.655521051
B31: TARIFACION ADICIONAL CLAIMS MADE
B33: Años de retroactividad
B34: Recargo adicional por cada año de retroactividad | D34: 0.125
B36: Prima total modalidad CLAIMS MADE | D36: =+D28*(1+($D$34*$D$33)) -> 322198092 | F36: =+#REF!*(1+(#REF!*#REF!)) ->  | G36: =+#REF!*(1+(#REF!*#REF!)) -> 
B39: OPINION DEL SUSCRIPTOR
B40: En la vigencia se presentaron tres eventos por los cuales se aperturaron reservas por $5,380,222, sin generar pagos así mismo la planta de médicos aumento en un 17% (53 médicos frente al año anerior), por lo tanto se ajusta la prima en $3Mill, es decir $383MIll para el límie de $3,000Mill. Adicionalmente se cotiza límite de $4,000Mill - Prima$555Mill y límite de $6,000Mill - Prima$650Mill
B48: Nota: Tarificador solo para Sumas aseguradas entre ColP$20 y ColP$1.500 mio.
B49: Diligenica los campos en este color
B53: SI(Y($C$5<=B36;$C$5>=B35);((C36-C35)/(B36-B35))*($C$5-B35)+C35
B56: Tabla PLO | E56: Tabla Medicos cat 1 | H56: Tabla Medicos cat 2 | K56: Tabla Medicos cat 3 | N56: Tabla Medicos cat 4
B57: limite | C57: prima | E57: limite | F57: prima | H57: limite | I57: prima | K57: limite | L57: prima | N57: limite | O57: prima
B58: 0 | C58: 0 | E58: 0 | F58: 0 | H58: 0 | I58: 0 | K58: 0 | L58: 0 | N58: 0 | O58: 0
B59: 10 | C59: 5000 | E59: 10 | F59: =0.5*247000 -> 123500 | H59: 10 | I59: =0.5*177000 -> 88500 | K59: 10 | L59: =0.5*116000 -> 58000 | N59: 10 | O59: =0.5*82000 -> 41000
B60: 20 | C60: 6400 | E60: 20 | F60: =0.5*321000 -> 160500 | H60: 20 | I60: =0.5*231000 -> 115500 | K60: 20 | L60: =0.5*152000 -> 76000 | N60: 20 | O60: =0.5*108000 -> 54000
B61: 30 | C61: 7400 | E61: 30 | F61: =0.5*370000 -> 185000 | H61: 30 | I61: =0.5*264000 -> 132000 | K61: 30 | L61: =0.5*176000 -> 88000 | N61: 30 | O61: =0.5*124000 -> 62000
B62: 50 | C62: 8800 | E62: 50 | F62: =0.5*445000 -> 222500 | H62: 50 | I62: =0.5*321000 -> 160500 | K62: 50 | L62: =0.5*211000 -> 105500 | N62: 50 | O62: =0.5*150000 -> 75000
B63: 100 | C63: 11900 | E63: 100 | F63: 300000 | H63: 100 | I63: 220000 | K63: 100 | L63: 143000 | N63: 100 | O63: 101500
B64: 200 | C64: 16000 | E64: 200 | F64: 407000 | H64: 200 | I64: 302500 | K64: 200 | L64: 192500 | N64: 200 | O64: 137500
B65: 500 | C65: 27000 | E65: 500 | F65: 660000 | H65: 500 | I65: 511500 | K65: 500 | L65: 327500 | N65: 500 | O65: 236500
B66: 1000 | C66: 36500 | E66: 1000 | F66: 890000 | H66: 1000 | I66: 690000 | K66: 1000 | L66: 442500 | N66: 1000 | O66: 320000
B67: 1500 | C67: =+C66+8000 -> 44500 | E67: 1500 | F67: 1101000 | H67: 1500 | I67: 840600 | K67: 1500 | L67: 532300 | N67: 1500 | O67: 14300
B68: PLO Básica | C68: =IF(AND($C$8<=B61,$C$8>=B60),((C61-C60)/(B61-B60))*($C$8-B60)+C60,IF(AND($C$8<=B62,$C$8>=B61),((C62-C61)/(B62-B61))*($C$8-B61)+C61,IF(AND($C$8<=B63,$C$8>=B62),((C63-C62)/(B63-B62))*($C$8-B62)+C62,IF(AND($C$8<=B64,$C$8>=B63),((C64-C63)/(B64-B63))*($C$8-B63)+C63,IF(AND($C$8<=B65,$C$8>=B64),((C65-C64)/(B65-B64))*($C$8-B64)+C64,IF(AND($C$8<=B66,$C$8>=B65),((C66-C65)/(B66-B65))*($C$8-B65)+C65,IF(AND($C$8<=B67,$C$8>=B66),((C67-C66)/(B67-B66))*($C$8-B66)+C66,0))))))) -> 44500 | E68: PLO Básica | F68: =IF(AND($C$8<=E61,$C$8>=E60),((F61-F60)/(E61-E60))*($C$8-E60)+F60,IF(AND($C$8<=E62,$C$8>=E61),((F62-F61)/(E62-E61))*($C$8-E61)+F61,IF(AND($C$8<=E63,$C$8>=E62),((F63-F62)/(E63-E62))*($C$8-E62)+F62,IF(AND($C$8<=E64,$C$8>=E63),((F64-F63)/(E64-E63))*($C$8-E63)+F63,IF(AND($C$8<=E65,$C$8>=E64),((F65-F64)/(E65-E64))*($C$8-E64)+F64,IF(AND($C$8<=E66,$C$8>=E65),((F66-F65)/(E66-E65))*($C$8-E65)+F65,IF(AND($C$8<=E67,$C$8>=E66),((F67-F66)/(E67-E66))*($C$8-E66)+F66,0))))))) -> 1101000 | H68: PLO Básica | I68: =IF(AND($C$8<=H61,$C$8>=H60),((I61-I60)/(H61-H60))*($C$8-H60)+I60,IF(AND($C$8<=H62,$C$8>=H61),((I62-I61)/(H62-H61))*($C$8-H61)+I61,IF(AND($C$8<=H63,$C$8>=H62),((I63-I62)/(H63-H62))*($C$8-H62)+I62,IF(AND($C$8<=H64,$C$8>=H63),((I64-I63)/(H64-H63))*($C$8-H63)+I63,IF(AND($C$8<=H65,$C$8>=H64),((I65-I64)/(H65-H64))*($C$8-H64)+I64,IF(AND($C$8<=H66,$C$8>=H65),((I66-I65)/(H66-H65))*($C$8-H65)+I65,IF(AND($C$8<=H67,$C$8>=H66),((I67-I66)/(H67-H66))*($C$8-H66)+I66,0))))))) -> 840600 | K68: PLO Básica | L68: =IF(AND($C$8<=K61,$C$8>=K60),((L61-L60)/(K61-K60))*($C$8-K60)+L60,IF(AND($C$8<=K62,$C$8>=K61),((L62-L61)/(K62-K61))*($C$8-K61)+L61,IF(AND($C$8<=K63,$C$8>=K62),((L63-L62)/(K63-K62))*($C$8-K62)+L62,IF(AND($C$8<=K64,$C$8>=K63),((L64-L63)/(K64-K63))*($C$8-K63)+L63,IF(AND($C$8<=K65,$C$8>=K64),((L65-L64)/(K65-K64))*($C$8-K64)+L64,IF(AND($C$8<=K66,$C$8>=K65),((L66-L65)/(K66-K65))*($C$8-K65)+L65,IF(AND($C$8<=K67,$C$8>=K66),((L67-L66)/(K67-K66))*($C$8-K66)+L66,0))))))) -> 532300 | N68: PLO Básica | O68: =IF(AND($C$8<=N61,$C$8>=N60),((O61-O60)/(N61-N60))*($C$8-N60)+O60,IF(AND($C$8<=N62,$C$8>=N61),((O62-O61)/(N62-N61))*($C$8-N61)+O61,IF(AND($C$8<=N63,$C$8>=N62),((O63-O62)/(N63-N62))*($C$8-N62)+O62,IF(AND($C$8<=N64,$C$8>=N63),((O64-O63)/(N64-N63))*($C$8-N63)+O63,IF(AND($C$8<=N65,$C$8>=N64),((O65-O64)/(N65-N64))*($C$8-N64)+O64,IF(AND($C$8<=N66,$C$8>=N65),((O66-O65)/(N66-N65))*($C$8-N65)+O65,IF(AND($C$8<=N67,$C$8>=N66),((O67-O66)/(N67-N66))*($C$8-N66)+O66,0))))))) -> 14300

Sheet Historico
A2: =+'Hoja de vida poliza RCCH'!C9:F9 -> 
A5: Año | B5: Vigenica | C5: No. de póliza | D5: Prima | E5: % VAR | F5: Limite | G5: Medicos | J5: % VAR | K5: Modalidad | L5: Siniestros | M5: ptes | N5: Stros totales | O5: Siniest. del año | P5: Siniest. acumulada | Q5: Siniest. Pagada acumulada
G6: A | H6: B | I6: TOTAL | L6: pagados | M6: pendientes | N6: totales
A7: 1 | B7: 2015-2016 | C7: 21880057 | D7: 380000000 | E7: 0 | F7: 3000000000 | G7: 291 | H7: 187 | I7: =SUM(G7:H7) -> 478 | J7: 0 | K7: SUNSET 2 AÑOS | L7: 0 | M7: 3040111 | N7: =SUM(L7:M7) -> 3040111 | O7: =+N7/D7 -> 0.008000292105 | P7: =+N7/$D$7 -> 0.008000292105 | Q7: =+L7/$D$7 -> 0
A8: 2 | B8: 2016-2017 | C8: 22027503 | D8: 280000000 | E8: =+D8/D7-1 -> -0.2631578947 | F8: 3000000000 | G8: =9+13+67+5+5 -> 99 | H8: =1+1+3+20+27+59+106 -> 217 | I8: 316 | J8: =+I8/I7-1 -> -0.3389121339 | K8: SUNSET 2 AÑOS | L8: 0 | M8: 5380222 | N8: 5380222 | O8: =+N8/D8 -> 0.01921507857 | P8: =+SUM(N7:N8)/SUM($D$7:$D$8) -> 0.0127580803 | Q8: =+SUM(L7:L8)/SUM($D$7:$D$8) -> 0
A9: 3 | B9: 2017-2018 | E9: =+D9/D8-1 -> -1 | G9: =85+0+0 -> 85 | H9: 284 | I9: 369 | J9: =+I9/I8-1 -> 0.167721519 | K9: SUNSET 2 AÑOS | N9: 0 | P9: =+SUM(N7:N9)/SUM($D$7:$D$9) -> 0.0127580803 | Q9: =+SUM(L7:L9)/SUM($D$7:$D$9) -> 0
A10: 4 | I10: 0 | J10: -1 | N10: 0 | P10: =+SUM(N7:N10)/SUM($D$7:$D$10) -> 0.0127580803 | Q10: =+SUM(L7:L10)/SUM($D$7:$D$10) -> 0
A11: 5 | I11: 0 | N11: 0 | P11: =+SUM(N7:N11)/SUM($D$7:$D$11) -> 0.0127580803 | Q11: =+SUM(L7:L11)/SUM($D$7:$D$11) -> 0
A12: 6 | I12: 0 | N12: 0 | P12: =+SUM(N7:N12)/SUM($D$7:$D$12) -> 0.0127580803 | Q12: =+SUM(L7:L12)/SUM($D$7:$D$12) -> 0
A13: 7 | I13: 0 | N13: 0 | P13: =+SUM(N7:N13)/SUM($D$7:$D$13) -> 0.0127580803 | Q13: =+SUM(L7:L13)/SUM($D$7:$D$13) -> 0
A14: 8 | N14: 0 | P14: =+SUM(N7:N14)/SUM($D$7:$D$14) -> 0.0127580803 | Q14: =+SUM(L7:L14)/SUM($D$7:$D$14) -> 0
A15: 9 | N15: 0 | P15: =+SUM(N7:N15)/SUM($D$7:$D$15) -> 0.0127580803 | Q15: =+SUM(L7:L15)/SUM($D$7:$D$15) -> 0
A16: 10 | I16: 0 | L16: 0 | N16: 0 | P16: =+SUM(N7:N16)/SUM($D$7:$D$16) -> 0.0127580803 | Q16: =+SUM(L7:L16)/SUM($D$7:$D$16) -> 0
B17: TOTALES | D17: =SUM(D7:D16) -> 660000000 | L17: =SUM(L7:L16) -> 0 | M17: 8420333 | N17: 8420333 | O17: =+N17/D17 -> 0.0127580803 | P17: =+N17/D17 -> 0.0127580803 | Q17: =+L17/D17 -> 0
